Cogmind - Beta 17 --- EXPLORER MODE // 2026.06.28 @ 20:51:09 Player: Steve French Result: Destroyed by H-55 Commando with Assault Rifle Performance ------------- Evolutions (3) 1500 Regions Visited (7) 1400 Robots Destroyed (60) 300 Value Destroyed (1704) 1704 Prototype IDs (3) 60 Alien Tech Used (0) 0 Bonus (0) 0 TOTAL SCORE: 4964 Bonus ------- None Cogmind --------- Core Integrity 0/700 Matter 300/300 Energy 100/100 System Corruption 1% Temperature Cool (0) Movement Core (1700) Ox33 Location -7/Lower Caves Parts ------- > --- POWER (3) -------- (None) > --- PROPULSION (3) --- (None) > --- UTILITY (5) ------ Improved Heat Sink Large Storage Unit Huge Storage Unit Visual Processing Unit > --- WEAPON (3) ------- (None) > --- INVENTORY (25) --- Neutrino Core Carbon-fiber Leg Improved Heat Sink Advanced Heat Sink Compact Battery (200) Medium Matter Pod (100) Visual Processing Unit Weapon Shielding Particle Gun Peak State ------------ > --- POWER ------------ Deuterium Engine Deuterium Engine Deuterium Engine > --- PROPULSION ------- Wheel Wheel > --- UTILITY ---------- Large Storage Unit Large Battery High-capacity Matter Pod Improved Terrain Scanner > --- WEAPON ----------- Particle Gun Heavy Assault Rifle Plasma Cutter > --- INVENTORY -------- Light Ion Engine Aluminum Leg Carbon-fiber Leg Compact Battery Medium Matter Pod Visual Processing Unit Visual Processing Unit Weapon Shielding Welding Torch Plasma Cutter [Rating: 24] Favorites ----------- Power Light Nuclear Core Engine Light Ion Engine Power Core Light Nuclear Core Propulsion Aluminum Leg Treads Light Treads Leg Aluminum Leg Wheel Wheel Flight Unit Flight Unit Utility Large Storage Unit Device Improved Heat Sink Storage Large Storage Unit Processor Transport Network Coupler Hackware Makeshift System Shield Protection Propulsion Shielding Weapon Particle Gun Energy Gun Particle Gun Ballistic Gun Improved Assault Rifle Special Weapon Plasma Cutter Slashing Weapon Katana Build | -11 -10 -10 -9 -8 -7 -7 -7 ------- Run | Yrd Mat Min Mat Mat Fac Low Low Slots Evolved 7 | . 1 . 2 2 2 . . Power 2 | . . . 1 1 . . . Propulsion 1 | . . . . . 1 . . Utility 3 | . 1 . . 1 1 . . Weapon 1 | . . . 1 . . . . Parts Attached 54 | 8 4 1 5 24 2 10 . Power 10 | 2 . . . 6 . 2 . Engine 7 | 2 . . . 5 . . . Core 3 | . . . . 1 . 2 . Reactor . | . . . . . . . . Propulsion 14 | 2 . . 2 5 2 3 . Treads 2 | . . . 2 . . . . Leg 7 | 2 . . . 1 1 3 . Wheel 3 | . . . . 2 1 . . Hover . | . . . . . . . . Flight 2 | . . . . 2 . . . Utility 16 | 2 4 1 1 4 . 4 . Device 4 | 1 . . 1 . . 2 . Storage 7 | . 3 1 . 3 . . . Processor 2 | . . . . 1 . 1 . Hackware 1 | . . . . . . 1 . Protection 2 | 1 1 . . . . . . Artifact . | . . . . . . . . Weapon 14 | 2 . . 2 9 . 1 . Energy Gun 6 | 2 . . 1 2 . 1 . Energy Cannon . | . . . . . . . . Ballistic Gun 3 | . . . 1 2 . . . Ballistic Cannon . | . . . . . . . . Launcher . | . . . . . . . . Special Weapon 4 | . . . . 4 . . . Impact Weapon . | . . . . . . . . Slashing Weapon 1 | . . . . 1 . . . Piercing Weapon . | . . . . . . . . Special Melee Weapon . | . . . . . . . . Unidentified Prototypes 1 | . . . 1 . . . . Parts Lost 26 | . . . . 7 1 12 6 Power 7 | . . . . 2 . 3 2 Propulsion 8 | . . . . 1 1 4 2 Utility 5 | . . . . 2 . 2 1 Weapon 6 | . . . . 2 . 3 1 Highest Loss Streak 7 | . . . . 7 1 6 6 To Critical Strikes . | . . . . . . . . Average Backups 9 | 2 9 12 11 11 10 7 9 Power . | . 1 1 . . 1 . 1 Propulsion 1 | 1 2 2 1 2 1 1 1 Utility 5 | . 3 5 6 5 6 5 6 Weapon . | . 1 2 1 . . . 1 Tool/Special . | . . . . . . . . Unused Backups 6 | . . . . . . . 6 Power 1 | . . . . . . . 1 Propulsion 1 | . . . . . . . 1 Utility 3 | . . . . . . . 3 Weapon 1 | . . . . . . . 1 Tool/Special . | . . . . . . . . Average Slot Usage (%) 83 | . 100 100 99 84 90 71 62 Engine 8 | . 12 12 19 15 13 . . Core 6 | . . . . 1 7 12 9 Treads 2 | . . . 13 3 . . . Leg 10 | . 25 25 6 . 6 13 10 Wheel 3 | . . . . 8 13 . . Device 5 | . 3 . 6 5 . 6 7 Storage 17 | . 20 25 20 22 21 13 14 Processor 6 | . . . . 1 7 11 7 Protection 2 | . 12 12 3 1 . . . Energy Gun 11 | . 25 25 26 11 14 3 . Ballistic Gun 1 | . . . 3 3 . . . Slashing Weapon 4 | . . . . . 7 7 6 Peak Build Rating 24 | 9 11 10 15 24 23 24 24 Average Rating 18 | 5 9 9 13 17 22 21 21 On Entrance 14 | . 9 9 10 15 23 23 24 Avg Prop Armor Cover (%) 8 | . . . . 7 7 12 . Naked Turns . | . . . . . . . . Heaviest Build 122 | 10 30 32 42 122 118 116 113 Greatest Support 40 | 20 20 20 40 40 20 26 20 Greatest Overweight (x) 34 | . 1 1 1 8 11 29 34 Average Overweight (x) 2 | . . 1 . 2 10 5 7 Largest Inventory Capacity 25 | 5 15 15 15 25 25 25 25 Average Capacity 20 | 5 12 15 15 17 25 25 25 Most Carried 15 | 5 12 13 12 15 12 10 9 Average Carried 9 | 2 9 12 11 11 10 7 9 Final Capacity 25 | 5 15 15 15 25 25 25 25 Final Carried 13 | 5 12 13 11 10 10 9 9 Class Distribution -------------------- 42% | Scavenger-Mutant 37% | Hacker-Mutant 16% | Hacker-Tank Dominant Class ---------------- Hacker-Mutant | -10/Materials Hacker-Mutant | -10/Mines Hacker-Tank | -9/Materials Scavenger-Mutant | -8/Materials Scavenger-Mutant | -7/Factory Scavenger-Mutant | -7/Lower Caves Hacker-Mutant | -7/Lower Caves Resources | -11 -10 -10 -9 -8 -7 -7 -7 ----------- Run | Yrd Mat Min Mat Mat Fac Low Low Matter Collected 1131 | 280 140 10 90 331 70 210 . Remotely . | . . . . . . . . Salvage Created 2203 | 120 221 . 534 625 249 414 40 Parts 118 | 6 12 . 43 29 7 15 6 Haulers Intercepted 1 | . . . 1 . . . . Recyclers Shooed . | . . . . . . . . Parts Field Recycled . | . . . . . . . . Retrieved Matter . | . . . . . . . . Parts Self-Destructed . | . . . . . . . . Prevented . | . . . . . . . . Parts Restored . | . . . . . . . . Kills | -11 -10 -10 -9 -8 -7 -7 -7 ------- Run | Yrd Mat Min Mat Mat Fac Low Low Combat Hostiles Destroyed 40 | . 6 . 7 14 3 9 1 Melee 3 | . . . . . . 2 1 Guns 34 | . 5 . 7 12 3 7 . AOE 1 | . 1 . . . . . . Classes Destroyed 12 | 2 3 . 3 2 1 . 1 Worker 7 | . 3 . 4 . . . . Builder 1 | . . . . 1 . . . Tunneler 3 | 2 . . . 1 . . . Hauler 1 | . . . 1 . . . . Recycler 3 | 1 . . 1 . 1 . . Watcher 5 | . . . 3 2 . . . Swarmer 11 | . 4 . 2 3 . 2 . Grunt 18 | . 2 . 2 7 2 5 . Duelist 2 | . . . . . 1 1 . Sentry 5 | . . . 3 1 . 1 . Hunter 3 | . . . . 3 . . . Programmer 1 | . . . . . . . 1 Best Kill Streak 7 | 2 5 . 6 7 4 3 1 Combat Bots Only 4 | . 2 . 2 4 3 3 1 Max Kills in Single Turn 2 | 1 2 . 2 1 1 1 1 Gunslinging 1 | . . . 1 . . . . Exploded 1 | . 1 . . . . . . Melee 1 | . . . . . . 1 1 Uniques/NPCs Destroyed . | . . . . . . . . Combat | -11 -10 -10 -9 -8 -7 -7 -7 -------- Run | Yrd Mat Min Mat Mat Fac Low Low Hostile Shots Fired 452 | . 10 . 23 159 7 197 56 Missed 102 | . 3 . 6 35 1 43 14 Hits 350 | . 7 . 17 124 6 154 42 Melee 9 | . . . . . 5 4 . Projectile 341 | . 7 . 17 124 1 150 42 Critical Strikes 13 | . . . . 4 2 5 2 Actively Blocked 1 | . . . . 1 . . . Damage Taken 3441 | . 36 . 112 1225 121 1553 394 Core 1066 | . 6 . 42 312 . 572 134 Absorbed by Shields 97 | . . . 13 84 . . . Redirected to Shielding 51 | . . . 2 49 . . . Ignored by Resistances 1960 | . 26 . 78 719 70 829 238 Core Remaining (%) 82 | 100 . 97 89 43 . . . Volleys Fired 179 | 7 10 . 27 76 9 50 . Largest 3 | 2 2 . 3 3 2 2 . Hottest 155 | 90 90 . 155 150 130 130 . Shots Fired 310 | 14 20 . 70 129 18 59 . Gun 298 | 14 20 . 70 117 18 59 . Cannon . | . . . . . . . . Launcher . | . . . . . . . . Special 12 | . . . . 12 . . . Kinetic 36 | . . . 10 26 . . . Thermal 240 | 7 10 . 43 103 18 59 . Explosive . | . . . . . . . . Electromagnetic 34 | 7 10 . 17 . . . . Robot Hit Streak 33 | 13 10 . 33 19 7 23 . Robot Miss Streak 3 | . 3 . 2 2 1 2 . Penetration Max . | . . . . . . . . Secondary Targets 3 | . 1 . 1 1 . . . Max Gunslinging Chain 1 | . 1 . 1 1 . . . Shots Hit Robots 243 | 13 13 . 49 95 14 54 5 Core Hits 104 | 4 10 . 21 37 9 21 2 Critical Kills . | . . . . . . . . Critical Parts Destroyed . | . . . . . . . . Critical Strikes 11 | . . . 2 5 1 2 1 Burn 8 | . . . 1 5 1 1 . Corrupt 1 | . . . 1 . . . . Sever 2 | . . . . . . 1 1 Melee Attacks 13 | . . . . . 1 7 5 Impact . | . . . . . . . . Slashing 13 | . . . . . 1 7 5 Piercing . | . . . . . . . . Sneak Attacks . | . . . . . . . . Combat Hostiles . | . . . . . . . . Follow-up Attacks . | . . . . . . . . Damage Inflicted 3924 | 174 304 . 779 1322 221 974 150 Guns 3289 | 174 168 . 739 1261 196 751 . Cannons . | . . . . . . . . Explosions 166 | . 133 . 33 . . . . Melee 398 | . . . . . 25 223 150 Ramming 36 | . 3 . 7 26 . . . Kinetic 380 | . . . 91 289 . . . Thermal 2737 | 75 222 . 486 1007 196 751 . Explosive . | . . . . . . . . Electromagnetic 373 | 99 79 . 195 . . . . Impact . | . . . . . . . . Slashing 398 | . . . . . 25 223 150 Piercing . | . . . . . . . . Highest Corruption 1 | . . . . . . . 1 Average Corruption 1 | . . . . . . . 1 Corruption Purged . | . . . . . . . . Corruption Blocked . | . . . . . . . . Overload Shots . | . . . . . . . . Overflow Damage 27 | . 8 . . . . 19 . Projectiles . | . . . . . . . . Explosions 8 | . 8 . . . . . . Melee 19 | . . . . . . 19 . Knockbacks . | . . . . . . . . Impact . | . . . . . . . . Kinetic . | . . . . . . . . Secondary . | . . . . . . . . Self-Inflicted Damage 13 | . . . . 13 . . . Shots . | . . . . . . . . Rammed 2 | . . . 1 1 . . . Targets Rammed 3 | . 1 . 1 1 . . . Kicked 1 | . 1 . . . . . . Crushed . | . . . . . . . . Highest Temperature 602 | 120 90 . 297 530 439 602 . Average Temperature 157 | 53 34 . 96 178 225 232 . Received Heat Transfer 1372 | . . . 49 606 9 708 . Effects 33 | . . . . 18 2 13 . Shutdowns 12 | . . . . 8 1 3 . Energy Bleed 3 | . . . . . 1 2 . Interference 2 | . . . . 2 . . . Matter Decay 2 | . . . . . . 2 . Short Circuit 5 | . . . . 3 . 2 . Damage (minor) 2 | . . . . . . 2 . Damage (major) 4 | . . . . 4 . . . Damage (core) 3 | . . . . 1 . 2 . Siege Activations . | . . . . . . . . Martial Activations . | . . . . . . . . Shielding Activations . | . . . . . . . . Robots Disrupted . | . . . . . . . . Combat Hostiles . | . . . . . . . . Robots Corrupted . | . . . . . . . . Combat Hostiles . | . . . . . . . . Parts Fried 2 | . . . 2 . . . . Impact Corruptions . | . . . . . . . . Robots Melted 2 | . . . . 2 . . . Combat Hostiles 2 | . . . . 2 . . . Parts Melted 10 | . 1 . 1 5 1 2 . Heat Transferred 7501 | 222 409 . 1295 3133 555 1887 . Parts Sabotaged . | . . . . . . . . Parts Stolen . | . . . . . . . . Parts Stripped . | . . . . . . . . Power Chain Reactions 2 | . 1 . 1 . . . . Alert | -11 -10 -10 -9 -8 -7 -7 -7 ------- Run | Yrd Mat Min Mat Mat Fac Low Low Maximum Alert Level . | . . . . . . . . Low Security (%) 100 | 100 100 100 100 100 100 . . Level 1 . | . . . . . . . . Level 2 . | . . . . . . . . Level 3 . | . . . . . . . . Level 4 . | . . . . . . . . Level 5 . | . . . . . . . . High Security . | . . . . . . . . Max Security . | . . . . . . . . Peak Influence 104 | 10 62 . 60 104 45 . . Initial . | . . . . . . . . Average 11 | . 10 . 9 23 2 . . Influence Increases 1173 | 15 176 . 273 394 75 210 30 Destroy 0b10 Robot/C 800 | . 120 . 140 280 60 180 20 Destroy 0b10 Robot/NC 100 | 15 15 . 45 20 5 . . Destroy Leader 192 | . 30 . 48 64 10 30 10 Successful Hack 7 | . . . 4 3 . . . Disable Machine 16 | . 4 . . 12 . . . Destroy Structure 13 | . 7 . 6 . . . . Partial Spotted 15 | . . . 15 . . . . Lose Combat Pursuer 30 | . . . 15 15 . . . Influence Decreases 1173 | 15 176 . 273 394 75 210 30 Time Decay 1033 | 15 176 . 273 324 65 160 20 Lost Part 140 | . . . . 70 10 50 10 Squads Dispatched 2 | . . . 1 1 . . . Investigation . | . . . . . . . . Extermination . | . . . . . . . . Reinforcement 2 | . . . 1 1 . . . Assault . | . . . . . . . . Garrison . | . . . . . . . . Intercept . | . . . . . . . . Searches Triggered . | . . . . . . . . Construction Impeded . | . . . . . . . . Haulers Reinforced . | . . . . . . . . Active Scanning Responses . | . . . . . . . . Cargo Convoy Interrupts . | . . . . . . . . Stealth | -11 -10 -10 -9 -8 -7 -7 -7 --------- Run | Yrd Mat Min Mat Mat Fac Low Low Distress Signals 5 | . 1 . 3 1 . . . Communications Jammed . | . . . . . . . . Distress Signals . | . . . . . . . . Times Spotted 53 | . 6 . 12 21 3 9 2 Peak Tracking Total 4 | . 2 . 2 4 3 3 1 Tactical Retreats 2 | . . . 1 1 . . . Traps | -11 -10 -10 -9 -8 -7 -7 -7 ------- Run | Yrd Mat Min Mat Mat Fac Low Low Traps Triggered . | . . . . . . . . Indirectly . | . . . . . . . . Trap Hack Attempts . | . . . . . . . . Triggered . | . . . . . . . . Disarmed . | . . . . . . . . Reprogrammed . | . . . . . . . . Reused . | . . . . . . . . Traps Extracted . | . . . . . . . . Installed . | . . . . . . . . Triggered . | . . . . . . . . Machines | -11 -10 -10 -9 -8 -7 -7 -7 ---------- Run | Yrd Mat Min Mat Mat Fac Low Low Machines Disabled 4 | . 1 . . 3 . . . Max in Single Turn 1 | . 1 . . 1 . . . Machines Repaired . | . . . . . . . . Machines Dismantled 1 | . . . . 1 . . . Machines Sabotaged . | . . . . . . . . Overloaded Fab Kills . | . . . . . . . . Hacking | -11 -10 -10 -9 -8 -7 -7 -7 --------- Run | Yrd Mat Min Mat Mat Fac Low Low Machines Accessed 13 | . 5 . 5 3 . . . Terminals 10 | . 3 . 4 3 . . . Fabricators . | . . . . . . . . Repair Stations 1 | . 1 . . . . . . Recycling Units 2 | . 1 . 1 . . . . Scanalyzers . | . . . . . . . . Garrison Access . | . . . . . . . . Total Hacks 28 | . 14 . 11 3 . . . Successful 25 | . 13 . 9 3 . . . Failed 3 | . 1 . 2 . . . . Catastrophic . | . . . . . . . . Database Lockouts . | . . . . . . . . Manual . | . . . . . . . . Terminals 22 | . 11 . 8 3 . . . Fabricators . | . . . . . . . . Repair Stations 1 | . 1 . . . . . . Recycling Units 5 | . 2 . 3 . . . . Scanalyzers . | . . . . . . . . Garrison Access . | . . . . . . . . Terminal Hacks 20 | . 11 . 6 3 . . . Record 16 | . 9 . 5 2 . . . Robot Analysis 1 | . . . . 1 . . . Prototype ID Bank 1 | . . . 1 . . . . Alert Level 2 | . 2 . . . . . . Fabricator Hacks . | . . . . . . . . Repair Station Hacks 1 | . 1 . . . . . . Scan Component 1 | . 1 . . . . . . Recycling Unit Hacks 4 | . 1 . 3 . . . . Recycle Component 1 | . . . 1 . . . . Process 1 | . . . 1 . . . . Report Inventory 1 | . 1 . . . . . . Retrieve Matter 1 | . . . 1 . . . . Scanalyzer . | . . . . . . . . Garrison Access Hacks . | . . . . . . . . Unauthorized Hacks . | . . . . . . . . Terminals . | . . . . . . . . Fabricators . | . . . . . . . . Repair Stations . | . . . . . . . . Recycling Units . | . . . . . . . . Scanalyzers . | . . . . . . . . Garrison Access . | . . . . . . . . Data Cores Recovered . | . . . . . . . . Used . | . . . . . . . . Hacking Detections 8 | . 5 . 2 1 . . . Full Trace Events . | . . . . . . . . Feedback Events . | . . . . . . . . Feedback Blocked . | . . . . . . . . Robot Schematics Acquired . | . . . . . . . . Robots Built . | . . . . . . . . Authchips . | . . . . . . . . Time . | . . . . . . . . Total Robot Build Rating . | . . . . . . . . Part Schematics Acquired . | . . . . . . . . Parts Built . | . . . . . . . . Authchips . | . . . . . . . . Time . | . . . . . . . . Total Part Build Rating . | . . . . . . . . Part Studies Acquired . | . . . . . . . . Parts Repaired . | . . . . . . . . Time . | . . . . . . . . Parts Recycled 1 | . . . 1 . . . . Recycled Matter 19 | . . . 19 . . . . Retrieved Matter 19 | . . . 19 . . . . Retrieved Components . | . . . . . . . . Parts Scanalyzed . | . . . . . . . . Part Schematics Acquired . | . . . . . . . . Parts Damaged . | . . . . . . . . Bothacking | -11 -10 -10 -9 -8 -7 -7 -7 ------------ Run | Yrd Mat Min Mat Mat Fac Low Low Used RIF Installer . | . . . . . . . . Robots Hacked . | . . . . . . . . Non-combat . | . . . . . . . . Combat . | . . . . . . . . Robot Hacks Applied . | . . . . . . . . Relay Couplers Released . | . . . . . . . . Fabnet Peak Effective % . | . . . . . . . . Robots Rewired . | . . . . . . . . Allies Hacked . | . . . . . . . . Hacks Repelled . | . . . . . . . . Allies | -11 -10 -10 -9 -8 -7 -7 -7 -------- Run | Yrd Mat Min Mat Mat Fac Low Low Total Allies . | . . . . . . . . Largest Group . | . . . . . . . . Highest-Rated Group . | . . . . . . . . Highest-Rated Ally . | . . . . . . . . Total Orders . | . . . . . . . . Ally Attacks . | . . . . . . . . Total Damage . | . . . . . . . . Kills . | . . . . . . . . Allies Corrupted . | . . . . . . . . Allies Melted . | . . . . . . . . Intel | -11 -10 -10 -9 -8 -7 -7 -7 ------- Run | Yrd Mat Min Mat Mat Fac Low Low Active Infowar (turns) 4167 | 31 206 . . 563 687 2429 251 Optics 2553 | . . . . . . 2302 251 Terrain 634 | 31 206 . . 397 . . . T.N.C. 2704 | . . . . 166 687 1851 . Robot Analysis Total 1 | . . . . 1 . . . Derelict Logs Recovered 2 | . . . . . . 1 1 Drone Launches . | . . . . . . . . Drone Recoveries . | . . . . . . . . Exploration | -11 -10 -10 -9 -8 -7 -7 -7 ------------- Run | Yrd Mat Min Mat Mat Fac Low Low Turns Passed 5850 | 128 667 45 828 815 687 2429 251 Spaces Moved 1809 | 92 408 23 339 337 88 479 43 Core 50 | 33 . . . 7 . 7 3 Treads 259 | . . . 229 30 . . . Legs 1173 | 59 408 23 110 7 71 455 40 Wheels 301 | . . . . 267 17 17 . Hover . | . . . . . . . . Flight 26 | . . . . 26 . . . Fastest Speed 50 | 50 120 190 160 95 155 150 470 Average Speed 287 | 94 152 190 216 158 748 474 575 Slowest Speed 1750 | 120 190 190 240 450 890 1500 1750 Overloaded Moves . | . . . . . . . . Propulsion Burnouts . | . . . . . . . . Robots Hopped . | . . . . . . . . Potential Cave-ins . | . . . . . . . . Cave-ins Triggered . | . . . . . . . . Exploration Rate (%) 27 | 5 56 7 34 35 3 71 8 Regions Visited 7 Branch Regions 3 Pre-discovered Areas . | . . . . . . . . Known Exits Taken 7 | 1 1 1 1 1 1 1 . Unknown Exits Taken . | . . . . . . . . Scrap Searched 1 | . . . . . . 1 . Spaces Dug . | . . . . . . . . Terrain Destroyed 14 | . 8 . 6 . . . . Melee . | . . . . . . . . Projectile . | . . . . . . . . AOE 14 | . 8 . 6 . . . . Terrain Rammed . | . . . . . . . . Walls Destroyed . | . . . . . . . . Machines Disabled . | . . . . . . . . Actions | -11 -10 -10 -9 -8 -7 -7 -7 --------- Run | Yrd Mat Min Mat Mat Fac Low Low Total 2154 | 117 431 24 375 485 104 570 48 Wait 12 | . . . . 5 . 7 . Move 1802 | 91 407 22 338 336 87 478 43 Hop . | . . . . . . . . Pick Up 58 | 11 8 1 2 21 3 12 . Fast Attach 2 | 1 . . . 1 . . . Attach 38 | 6 2 . 2 14 3 11 . Detach 1 | . 1 . . . . . . Swap 25 | 1 2 1 4 14 1 2 . Drop 18 | . . . 1 14 . 3 . Fire 179 | 7 10 . 27 76 9 50 . Melee 13 | . . . . . 1 7 5 Ram 1 | . . . . 1 . . . Kick 1 | . 1 . . . . . . Crush 1 | . . . 1 . . . . Escape Stasis . | . . . . . . . . Rewire . | . . . . . . . . Trap . | . . . . . . . . Miscellaneous 3 | . . . . 3 . . . Route ------- -11/Scrapyard -10/Materials -10/Mines -9/Materials -8/Materials -7/Factory -7/Lower Caves -7/Lower Caves History --------- Turn | Location | Event 21 | -11/Scrapyard | Identified exit to Materials 21 | -11/Scrapyard | Discovered exit to Materials (range 15) 129 | -11/Scrapyard | Entered Materials 129 | -10/Materials | Evolved 1 slot: Utility x1 302 | -10/Materials | Build established: Hacker-Mutant 307 | -10/Materials | Identified exit to Mines 307 | -10/Materials | Discovered exit to Mines (range 14) 796 | -10/Materials | Entered Mines 802 | -10/Mines | Identified exit to Materials 802 | -10/Mines | Discovered exit to Materials (range 13) 806 | -10/Mines | Met a Derelict bent on vengeance 841 | -10/Mines | Entered Materials 841 | -9/Materials | Evolved 2 slots: Power x1, Weapon x1 1160 | -9/Materials | Build established: Hacker-Tank 1638 | -9/Materials | Identified exit to Materials 1638 | -9/Materials | Discovered exit to Materials (range 14) 1669 | -9/Materials | Entered another Materials area 1669 | -8/Materials | Evolved 2 slots: Power x1, Utility x1 1895 | -8/Materials | Lost 7 parts (2p1n2u2w) 2200 | -8/Materials | Core integrity fell below 50% 2458 | -8/Materials | Identified exit to Factory 2458 | -8/Materials | Discovered exit to Factory (range 16) 2484 | -8/Materials | Entered Factory 2484 | -7/Factory | Evolved 2 slots: Propulsion x1, Utility x1 2843 | -7/Factory | Build established: Scavenger-Mutant 3127 | -7/Factory | Identified exit to Lower Caves 3127 | -7/Factory | Discovered exit to Lower Caves (range 6) 3171 | -7/Factory | Entered Lower Caves 3286 | -7/Lower Caves | Lost 5 parts (3p1n1w) 3316 | -7/Lower Caves | Core integrity fell below 50% 3380 | -7/Lower Caves | Lost 6 parts (3n2u1w) 4861 | -7/Lower Caves | Identified exit to Lower Caves 5307 | -7/Lower Caves | Attracted the attention of an 0b10 checkpoint 5310 | -7/Lower Caves | Build established: Hacker-Mutant 5333 | -7/Lower Caves | Core integrity fell below 20% 5600 | -7/Lower Caves | Entered another Lower Caves area 5680 | -7/Lower Caves | Learned Factory terminal intel 5851 | -7/Lower Caves | Destroyed by H-55 Commando with Assault Rifle Last Messages --------------- 05332_ Y-54 Guardian Lgt. Treads severed. 05334_ Y-54 Guardian destroyed. 05337_ Acquired 1 matter. [Achievement: Tourist] LOCATION=LOWER CAVES GOAL=ESCAPE 05680_ Acquired derelict log, extracted data. Data stored: Factory terminal intel. 05760_ Lgt. Nuclear Core destroyed. 05782_ Aluminum Leg destroyed. 05784_ P-60 Hacker Remote Datajack severed. 05785_ Lgt. Nuclear Core destroyed. 05804_ Aluminum Leg destroyed. 05805_ P-60 Hacker destroyed. 05830_ Penetrated by Slug. 05833_ Mak. System Shield destroyed. 05836_ Penetrated by Slug. 05842_ Slug penetrates Wall. 05848_ Katana destroyed. 05851_ Penetrated by Slug. Map ----- +----------------------------------------------------+ | ?????????????????????????????????????????????????? | | ?????????????????????????????????????????????????? | | ?????????????????????????????????????????????????? | | ?????????????????????????????????????????????????? | | ???????????????????#######???????????????????????? | | ???????????????????#"""""#???????????????????????? | | ???????????????????#"""""#???????????????????????? | | ???????????????????#"""""#???????????????????????? | | ????????????????????# #????????????????????????? | | ???????????????????## ##???????????????????????? | | ??????????????????## ###???????####??????????? | | ??????????????????# ### ######### ##?????????? | | ??????????????????# ##????????? | | ??????????????????# #????????? | | ??????????????????# ## ### ##????????? | | ??????????????????# ##### ##?## #?????????? | | ??????????????????# #???## #???## #????????? | | ?????????????????? #????# #????## #???????? | | ?????????????????? ????# ##?????# #???????? | | ?????????????????? ????# #??????## #???????? | | ????????????????? ##????# ##??????######???????? | | ????????????????? ??????# ##??????????????????? | | ????????????????? ??????# #??????????????????? | | ???????????????? ?????## #??????????????????? | | ????????????????# ????##=[ ##?????????????????? | | ????????????????# ????#!@| ##????????????????? | | ????????????????# ????#!=* #????????????????? | | ????????????????# ???# #???????????????? | | ????????????????# ??# h ## #??????????????? | | ????????????????# ???# #? ????????????? | | ????????????????? ??# #? ?????????? | | ????????????????? ? #?# #????????? | | ?????????????????? #??# ##????????? | | ????????????????? ##??? ##?????????? | | ????????????????# ###????? ##??????????? | | ????????????????## #????????????????????? | | ?????????????????# ## ????????????????????? | | ????????????????? ?# ????????????????????? | | ???????????????? #?# ????????????????????? | | ???????????????# ??## ????????????????????? | | ????????????????? ????## ???????????????????? | | ????????????????????????? ???????????????????? | | ?????????????????????????# ????????????????????? | | ??????????????????????????# ????????????????????? | | ?????????????????????????????????????????????????? | | ?????????????????????????????????????????????????? | | ?????????????????????????????????????????????????? | | ?????????????????????????????????????????????????? | | ?????????????????????????????????????????????????? | | ?????????????????????????????????????????????????? | +----------------------------------------------------+ Best States ------------- Heat Dissipation 48 Energy Generation 32 Energy Capacity 825 Matter Stores 500 Matter Capacity 500 Sight Range 18 Terrain Scan Range 16 Terrain Scan Density 10 Resistance: KI 35 Resistance: TH 35 Resistance: EX 35 Resistance: EM 35 Resistance: I 35 Resistance: S 35 Resistance: P 35 Propulsion Shielding 33 Weapon Shielding 33 Melee Speed Boost 20 Evasion (%) 55 Recoil Reduction 2 Offensive Hacking 20 Defensive Hacking 11 Item Schematics ----------------- None Robot Schematics ------------------ None Fabricated ------------ Nothing Repaired ---------- Nothing Studied --------- None Alien Tech Used ----------------- None Achievements -------------- Librarian Novice Programmer Spot Them First That Tickles Tourist Well Done Challenges ------------ None Game ------ Seed ArcMicrodissipatorHarness Manual? 0 Play Time 00:37:09 Cumulative 3.5 hours Start 2026.06.28 @ 20:12:26 End 2026.06.28 @ 20:51:09 Sessions 1 Manual Loads 0 Difficulty Explorer Special Mode None Game No. 14 Rogue 13 Adventurer 0 Explorer 1 Win Type - Total 0 Types 0/0/0/0/0/0/0/0/0/0 Lore% 1 Gallery% 7 Achievement% 7 Wizard Run 0 Options --------- Layout 1 ASCII 0 Keyboard 0 Movement Mouse Keybinds 0 Fullscreen 1 Font 32/SmallcapsGlow Map View 50x35 Zoom Use 0% Tactical HUD 1 Map Filters NONE Filters NONE Steam 1 RUN: fc85753f-fde5-49e1-9d43-ece904c2c174